[Event "German Bundesliga 2023-24"]
[Site "Germany"]
[Date "2024.02.25"]
[Round "11.9"]
[White "Santos Latasa, Jaime"]
[Black "Shevchenko, Kirill"]
[Result "0-1"]
[ECO "D11"]
[WhiteElo "2615"]
[BlackElo "2651"]
[Annotator "ChessBase"]
[PlyCount "74"]
[EventDate "2023.10.20"]
[EventType "team-tourn"]
[EventCountry "GER"]
[SourceTitle "playchess.com"]
[Source "ChessBase"]
[SourceQuality "1"]
[TimeControl "40/6000+30:3000+30"]

1. d4 {[%emt 0:00:03]} Nf6 {[%emt 0:00:24]} 2. c4 {[%emt 0:00:05]} c6 {[%emt 0:00:05]} 3. Nf3 {[%emt 0:03:30]} d5 {[%emt 0:01:52]} 4. e3 {[%emt 0:02:22]} Bg4 {[%emt 0:01:59]} 5. h3 {[%emt 0:00:30]} Bh5 {[%emt 0:00:14]} 6. Nc3 {[%emt 0:01:05]} e6 {[%emt 0:01:11]} 7. g4 {[%emt 0:00:34]} Bg6 {[%emt 0:00:06]} 8. Ne5 {[%emt 0:00:05]} Nbd7 {[%emt 0:00:14]} 9. Nxg6 {[%emt 0:00:08]} hxg6 {[%emt 0:00:05]} 10. Bd2 {[%emt 0:00:19]} Bb4 {[%emt 0:01:56]} 11. cxd5 {[%emt 0:00:46]} exd5 {[%emt 0:00:22]} 12. f3 {[%emt 0:02:20]} Bd6 {[%emt 0:04:09]} 13. Qb3 {[%emt 0:02:34]} Bg3+ {[%emt 0:01:58]} 14. Kd1 {[%emt 0:01:07]} O-O {[%emt 0:02:07]} 15. Rc1 {[%emt 0:06:40]} Bh4 {[%emt 0:05:33]} 16. Kc2 {[%emt 0:02:24]} b5 {[%emt 0:05:50]} 17. e4 {[%emt 0:11:50]} dxe4 {[%emt 0:09:34]} 18. Nxe4 {[%emt 0:19:10]} Nb6 {[%emt 0:06:14]} 19. Be3 {[%emt 0:02:43]} Re8 {[%emt 0:23:53]} 20. Bd3 {[%emt 0:06:09]} Nc4 {[%emt 0:03:53]} 21. Bg1 {[%emt 0:02:07]} a5 {[%emt 0:11:35]} 22. Bxc4 {[%emt 0:02:57]} bxc4 {[%emt 0:00:23]} 23. Qxc4 {[%emt 0:00:05]} Nxe4 {[%emt 0:00:04]} 24. fxe4 {[%emt 0:00:06]} Rxe4 {[%emt 0:00:04]} 25. Kb1 {[%emt 0:00:34]} c5 {[%emt 0:06:47]} 26. Rd1 {[%emt 0:07:35]} cxd4 {[%emt 0:02:25]} 27. Qc6 {[%emt 0:00:36]} Re6 {[%emt 0:01:18]} 28. Qf3 {[%emt 0:00:06]} d3 {[%emt 0:05:48]} 29. Bh2 {[%emt 0:08:08]} Re2 {[%emt 0:02:34]} 30. Rxd3 {[%emt 0:01:26]} Qe8 {[%emt 0:00:08]} 31. Bf4 {[%emt 0:01:23]} Rf2 {[%emt 0:02:20]} 32. Qe3 {[%emt 0:00:09]} Qa4 {[%emt 0:00:33]} 33. Be5 {[%emt 0:02:37]} Qc2+ {[%emt 0:03:33]} 34. Ka1 {[%emt 0:01:20]} Re8 {[%emt 0:00:09]} 35. Rd5 {[%emt 0:02:11]} Re2 {[%emt 0:01:35]} 36. Qd4 {[%emt 0:00:35]} Bf6 {[%emt 0:01:58]} 37. Rc5 {[%emt 0:02:01]} Bxe5 {[%emt 0:00:10]} 0-1

[Event "German Bundesliga 2023-24"]
[Site "Germany"]
[Date "2024.02.25"]
[Round "11.10"]
[White "Ivic, Velimir"]
[Black "Huschenbeth, Niclas"]
[Result "1-0"]
[ECO "C77"]
[WhiteElo "2557"]
[BlackElo "2605"]
[Annotator "TA"]
[PlyCount "107"]
[EventDate "2023.10.20"]
[EventType "team-tourn"]
[EventCountry "GER"]
[SourceTitle "playchess.com"]
[Source "ChessBase"]
[SourceQuality "1"]
[TimeControl "40/6000+30:3000+30"]

{[%evp 13,107,5,13,8,15,0,0,0,83,81,136,109,117,112,110,112,156,179,211,192,216,213,209,217,215,209,218,216,257,254,301,263,417,283,281,281,280,277,300,304,317,310,288,278,277,278,326,302,310,324,384,372,422,365,437,266,319,334,321,325,328,330,305,312,329,337,320,333,540,572,523,505,471,254,544,635,722,726,715,552,468,341,1342,1522,1551,1551,1122,1103,1103,154,1088,1059,962,914,906,906]} 1. e4 {[%emt 0:00:07]} e5 {[%emt 0:00:05]} 2. Nf3 {[%emt 0:00:06]} Nc6 {[%emt 0:00:05]} 3. Bb5 {[%emt 0:00:13]} a6 {[%emt 0:00:10]} 4. Ba4 {[%emt 0:00:06]} Nf6 {[%emt 0:00:13]} 5. d3 {[%emt 0:00:28]} b5 {[%emt 0:05:50]} 6. Bb3 {[%emt 0:00:47]} Bc5 {[%emt 0:00:07]} 7. c3 {[%emt 0:01:19]} d6 {[%emt 0:05:09]} 8. Nbd2 {[%emt 0:02:30]} O-O {[%emt 0:01:11]} 9. Nf1 {[%emt 0:02:25]} Re8 {[%emt 0:35:28]} 10. Ng3 {[%emt 0:01:50] The position is equal.} d5 {[%emt 0:09:14]} (10... h6 $11 {keeps the balance.}) 11. Bg5 $16 {[%emt 0:11:47]} d4 {[%emt 0:11:17] [#]} (11... dxe4 $142 12. Bxf6 gxf6 13. Nxe4 Be7) 12. Bd5 $1 {[%emt 0:03:03][%mdl 512]} Qd6 {[%emt 0:01:16]} 13. Bxf6 {[%emt 0:29:23]} Qxf6 {[%emt 0:00:11] [#]} 14. cxd4 {[%emt 0:03:04]} Bb4+ {[%emt 0:14:16]} 15. Kf1 {[%emt 0:01:03] Strongly threatening dxe5.} Rb8 {[%emt 0:02:35]} (15... exd4 16. e5 Nxe5 17. Bxa8 $18) 16. Qb3 {[%emt 0:08:05]} Bf8 {[%emt 0:06:17]} 17. Nh5 {[%emt 0:04:42]} Qg6 {[%emt 0:00:48]} 18. Bxc6 {[%emt 0:00:18]} Qxc6 {[%emt 0:00:06]} 19. Nxe5 {[%emt 0:00:07]} (19. dxe5 Qh6 20. Ng3 c5 $11) 19... Rxe5 {[%emt 0:00:26]} 20. dxe5 {[%emt 0:00:06]} Bg4 {[%emt 0:07:09]} 21. Nf4 {[%emt 0:03:38]} Rd8 {[%emt 0:00:48]} 22. e6 {[%emt 0:02:23]} Qd6 {[%emt 0:03:32]} (22... Bxe6 $142 23. Nxe6 fxe6) 23. h3 {[%emt 0:01:16]} Bxe6 {[%emt 0:00:26]} 24. Nxe6 {[%emt 0:00:06]} fxe6 {[%emt 0:00:04]} 25. g3 {[%emt 0:04:08]} Qxd3+ {[%emt 0:02:11]} 26. Qxd3 {[%emt 0:00:06]} Rxd3 $18 {[%emt 0:00:04][%mdl 4096] Endgame. KRR-KRB} 27. Ke2 {[%emt 0:02:06] Prevents Rd2+.} Rd4 {[%emt 0:00:04]} 28. f3 {[%emt 0:02:41]} Bd6 {[%emt 0:00:04]} 29. Rhd1 {[%emt 0:03:23]} Rc4 {[%emt 0:00:41]} 30. Rdc1 {[%emt 0:07:06] aiming for Rxc4.} Rb4 {[%emt 0:02:21]} 31. b3 {[%emt 0:00:31]} Bxg3 {[%emt 0:00:04]} 32. Rc6 {[%emt 0:00:21]} a5 {[%emt 0:00:38]} 33. Rd1 {[%emt 0:02:46]} a4 {[%emt 0:01:40]} 34. Rd3 {[%emt 0:01:16]} axb3 {[%emt 0:01:18]} 35. axb3 {[%emt 0:00:13]} (35. Rxe6 b2 (35... bxa2 36. Ra6 $14) 36. Rd7 (36. Re7 $2 Bd6 $19) 36... h6 $19 (36... Rxe4+ $2 37. Rxe4 Bd6 38. Re8+ Bf8 39. Rd1 $18)) 35... Kf7 {[%emt 0:00:31]} 36. Kd2 {[%emt 0:00:59] Hoping for Kc3.} Be5 {[%emt 0:01:17]} 37. Rc5 {[%emt 0:01:15]} Kf6 {[%emt 0:00:18]} 38. Kc2 {[%emt 0:01:10]} g5 {[%emt 0:00:47]} 39. Rd8 {[%emt 0:00:28]} Bd6 {[%emt 0:00:34] Dodges Rf8+} 40. Rc6 {[%emt 0:07:26]} Rd4 $2 {[%emt 0:00:34]} (40... Ke5 {was necessary.} 41. Rg8 h6 (41... Kf4 $2 42. Kc3 $18)) 41. Rxc7 {[%emt 0:51:48]} h5 {[%emt 0:03:23]} 42. Rcd7 {[%emt 0:00:00]} Ke5 {[%emt 0:03:14]} 43. Rh7 {[%emt 0:00:00]} (43. Rf7 $142) 43... h4 $2 {[%emt 0:24:57]} (43... Kf4 44. Rhd7 (44. Rxh5 Ke3 $14) 44... Ke5) 44. Rh6 {[%emt 0:00:00]} Bc5 {[%emt 0:04:31]} 45. Rxd4 {[%emt 0:00:00]} Bxd4 {[%emt 0:00:04] KR-KB} 46. Kd3 {[%emt 0:00:00][%cal Of3f4] White wants to mate with f4+!} Bb2 {[%emt 0:00:22]} 47. Rg6 {[%emt 0:00:00]} Kf4 {[%emt 0:05:37]} (47... Bc1 48. b4 Kf4 49. Rxe6 Kxf3 50. Rf6+ Kg3) 48. Ke2 {[%emt 0:00:00]} e5 {[%emt 0:00:24]} 49. Kf2 {[%emt 0:00:00][%cal Rg6f6]} Bd4+ {[%emt 0:00:26]} 50. Kg2 {[%emt 0:00:00]} b4 {[%emt 0:01:14]} 51. Rf6+ {[%emt 0:00:00]} Ke3 {[%emt 0:00:02]} 52. Rf5 {[%emt 0:00:00] White is clearly winning.} Kd3 {[%emt 0:00:26]} 53. Rxg5 {[%emt 0:00:00]} Kc3 {[%emt 0:00:38] [#]} 54. f4 $1 {[%emt 0:00:00] Black did not feel at home in the position after the opening.   Weighted Error Value: White=0.34/Black=0.43.  Mistake:       	White=1     	Black=6      Inaccurate:     	White=2     	Black=1      OK:         	White=18    	Black=13     Best:        	White=5     	Black=1      Brilliant:      	White=1     	---} 1-0

[Event "German Bundesliga 2023-24"]
[Site "Germany"]
[Date "2024.02.25"]
[Round "11.11"]
[White "Idani, Pouya"]
[Black "McShane, Luke J"]
[Result "1/2-1/2"]
[ECO "C67"]
[WhiteElo "2633"]
[BlackElo "2618"]
[Annotator "TA"]
[PlyCount "42"]
[EventDate "2023.10.20"]
[EventType "team-tourn"]
[EventCountry "GER"]
[SourceTitle "playchess.com"]
[Source "ChessBase"]
[SourceQuality "1"]
[TimeControl "40/6000+30:3000+30"]

{[%evp 12,42,20,26,25,20,22,9,15,0,16,9,12,10,9,6,0,0,4,0,0,-2,0,-4,-1,-7,0,0,0,0,-2,-5,37]} 1. e4 {[%emt 0:00:02]} e5 {[%emt 0:00:06]} 2. Nf3 {[%emt 0:00:05]} Nc6 {[%emt 0:00:06]} 3. Bb5 {[%emt 0:00:03]} Nf6 {[%emt 0:00:08]} 4. O-O {[%emt 0:00:08][%cal Bh1f1,Bf1e1,Be1e5][%mdl 32]} Nxe4 {[%emt 0:00:06]} 5. Re1 {[%emt 0:00:03]} Nd6 {[%emt 0:00:06]} 6. Nxe5 {[%emt 0:00:05]} Be7 {[%emt 0:00:09]} 7. Bf1 {[%emt 0:00:03]} Nf5 {[%emt 0:00:21]} 8. c3 {[%emt 0:02:24]} Nxe5 {[%emt 0:00:32] The position is equal.} 9. Rxe5 {[%emt 0:00:06]} d6 {[%emt 0:00:06]} 10. Re1 {[%emt 0:00:05]} d5 {[%emt 0:00:06]} 11. d4 {[%emt 0:00:03]} O-O {[%emt 0:00:08]} 12. Bf4 {[%emt 0:04:29]} Bd6 {[%emt 0:02:15]} 13. Qf3 {[%emt 0:01:28]} Bxf4 {[%emt 0:08:12]} 14. Qxf4 {[%emt 0:00:29]} Qd6 {[%emt 0:00:23]} 15. Qxd6 {[%emt 0:05:27]} Nxd6 {[%emt 0:00:10]} 16. Bd3 {[%emt 0:00:03]} Bf5 {[%emt 0:04:02]} 17. Bxf5 {[%emt 0:00:06]} Nxf5 {[%emt 0:00:05]} 18. Nd2 {[%emt 0:00:09]} Rfe8 {[%emt 0:00:56]} 19. Kf1 {[%emt 0:00:20]} f6 {[%emt 0:01:06]} 20. Rxe8+ {[%emt 0:00:17]} Rxe8 {[%emt 0:00:05]} 21. Re1 {[%emt 0:00:04]} Rxe1+ {[%emt 0:01:01] An uneventful encounter.   Weighted Error Value: White=0.01 (flawless) /Black=0.02 (flawless) .  OK:         	White=8     	Black=6} 1/2-1/2

[Event "German Bundesliga 2023-24"]
[Site "Germany"]
[Date "2024.02.25"]
[Round "11.12"]
[White "Efimenko, Zahar"]
[Black "Dragnev, Valentin"]
[Result "1/2-1/2"]
[ECO "C84"]
[WhiteElo "2575"]
[BlackElo "2586"]
[Annotator "TA"]
[PlyCount "48"]
[EventDate "2023.10.20"]
[EventType "team-tourn"]
[EventCountry "GER"]
[SourceTitle "playchess.com"]
[Source "ChessBase"]
[SourceQuality "1"]
[TimeControl "40/6000+30:3000+30"]

{[%evp 15,48,11,22,23,18,28,22,25,13,8,8,8,9,9,4,1,1,13,7,13,35,15,4,-4,-16,-8,0,0,0,0,0,0,0,0,34]} 1. e4 {[%emt 0:00:45]} e5 {[%emt 0:00:09]} 2. Nf3 {[%emt 0:00:14]} Nc6 {[%emt 0:00:06]} 3. Bb5 {[%emt 0:00:14][%cal Bf1b5,Bb5a4,Ba4b3][%mdl 32]} a6 {[%emt 0:00:15]} 4. Ba4 {[%emt 0:00:09]} Nf6 {[%emt 0:00:15]} 5. O-O {[%emt 0:00:25]} Be7 {[%emt 0:00:28]} 6. d3 {[%emt 0:00:47][%cal Bd2d3,Bd3d4][%mdl 32]} b5 {[%emt 0:00:08]} 7. Bb3 {[%emt 0:00:05]} d6 {[%emt 0:00:07]} 8. a4 {[%emt 0:01:04]} Bd7 {[%emt 0:00:20]} 9. c3 {[%emt 0:00:57]} Na5 {[%emt 0:00:32]} 10. Bc2 {[%emt 0:01:40]} c5 {[%emt 0:00:07]} 11. d4 {[%emt 0:01:48]} Qb8 {[%emt 0:00:15]} 12. Bg5 {[%emt 0:01:32]} Be6 {[%emt 0:06:02]} 13. Nbd2 {[%emt 0:03:41]} h6 {[%emt 0:04:02]} 14. Bh4 {[%emt 0:01:18]} O-O {[%emt 0:01:57]} 15. Re1 {[%emt 0:01:37]} cxd4 {[%emt 0:13:33]} 16. cxd4 {[%emt 0:00:30]} Rc8 {[%emt 0:01:19]} 17. h3 {[%emt 0:21:08]} Qb6 {[%emt 0:11:37]} 18. axb5 {[%emt 0:16:38]} axb5 {[%emt 0:03:44] The position is equal.} 19. d5 {[%emt 0:04:19]} Bd7 {[%emt 0:00:13]} 20. Bd3 {[%emt 0:00:20]} b4 {[%emt 0:13:39]} 21. Qe2 {[%emt 0:01:46]} Ra7 {[%emt 0:18:10]} 22. Rec1 {[%emt 0:09:54]} Rac7 {[%emt 0:01:56]} 23. Rxc7 {[%emt 0:02:12]} Rxc7 {[%emt 0:00:26]} 24. Qe3 {[%emt 0:02:04]} Qc5 {[%emt 0:05:11] Not much happened in this game.   Weighted Error Value: White=0.02 (flawless) /Black=0.03 (flawless) .  Inaccurate:     	---       	Black=1      OK:         	White=8     	Black=9} 1/2-1/2

[Event "German Bundesliga 2023-24"]
[Site "Germany"]
[Date "2024.02.25"]
[Round "11.13"]
[White "Alonso Rosell, Alvar"]
[Black "Aditya Mittal"]
[Result "1/2-1/2"]
[ECO "A28"]
[WhiteElo "2562"]
[BlackElo "2588"]
[Annotator "TA"]
[PlyCount "87"]
[EventDate "2023.10.20"]
[EventType "team-tourn"]
[EventCountry "GER"]
[SourceTitle "playchess.com"]
[Source "ChessBase"]
[SourceQuality "1"]
[TimeControl "40/6000+30:3000+30"]

{[%evp 10,87,3,-17,-13,-9,0,-8,0,0,0,0,0,-6,0,-14,-7,-5,0,-8,-12,-21,0,0,0,0,0,0,0,0,0,0,0,0,0,0,0,0,0,0,0,0,0,0,0,0,2,0,4,0,0,0,0,0,0,-12,-5,-5,-5,-5,0,0,0,0,0,0,0,0,0,0,0,0,0,0,0,0,4,0,0,0]} 1. c4 {[%emt 0:00:05]} e5 {[%emt 0:00:10]} 2. a3 {[%emt 0:00:07]} Nf6 {[%emt 0:00:50][%cal Bg8f6,Bf6d5,Bd5b6][%mdl 32]} 3. Nc3 {[%emt 0:00:09]} Nc6 {[%emt 0:05:56]} 4. Nf3 {[%emt 0:03:29]} d5 {[%emt 0:03:07]} 5. cxd5 {[%emt 0:00:07]} Nxd5 {[%emt 0:00:02]} 6. d3 {[%emt 0:00:08] The position is equal.} Be7 {[%emt 0:02:05]} 7. e4 {[%emt 0:01:33]} Nb6 {[%emt 0:04:08]} 8. Be2 {[%emt 0:03:40]} O-O {[%emt 0:02:26]} 9. O-O {[%emt 0:00:39]} Be6 {[%emt 0:02:55]} 10. Be3 {[%emt 0:01:10]} Bf6 {[%emt 0:01:33]} 11. Na4 {[%emt 0:23:03]} Nxa4 {[%emt 0:01:13]} 12. Qxa4 {[%emt 0:01:18]} Qd7 {[%emt 0:00:41]} 13. Rfc1 {[%emt 0:00:30]} Rfd8 {[%emt 0:03:21]} 14. h3 {[%emt 0:23:45]} Nd4 {[%emt 0:20:47]} 15. Qxd7 {[%emt 0:00:21]} Nxe2+ {[%emt 0:00:09]} (15... Rxd7 16. Nxd4 exd4 17. Bd2 $14) (15... Nxf3+ {simplifies} 16. Bxf3 Rxd7 17. Be2 Be7) 16. Kf1 {[%emt 0:00:04]} Ng3+ {[%emt 0:04:12]} 17. fxg3 {[%emt 0:00:11]} Rxd7 {[%emt 0:00:02]} 18. Ke2 {[%emt 0:00:22]} h5 {[%emt 0:06:28]} 19. Rc3 {[%emt 0:12:37]} c6 {[%emt 0:04:32]} 20. Rc5 {[%emt 0:12:51]} Re8 {[%emt 0:13:04]} 21. Rac1 {[%emt 0:02:09]} g6 {[%emt 0:04:45]} 22. R5c3 {[%emt 0:12:11]} (22. Nxe5 Bxe5 23. Rxe5 Bg4+ 24. hxg4 Rxe5 25. gxh5 f5 (25... Rxh5 26. Bxa7 Kg7 27. Ke3 $11) 26. hxg6 (26. Bxa7 fxe4 27. dxe4 gxh5 $19) 26... fxe4 27. dxe4 Rxe4) 22... a6 {[%emt 0:02:49]} 23. Ng5 {[%emt 0:01:44]} Bd8 {[%emt 0:04:08]} 24. Nxe6 {[%emt 0:01:08]} Rxe6 {[%emt 0:00:01]} 25. g4 {[%emt 0:00:14]} hxg4 {[%emt 0:04:21]} 26. hxg4 {[%emt 0:00:08]} f6 {[%emt 0:00:09]} 27. b4 {[%emt 0:03:03]} Be7 {[%emt 0:03:31]} 28. Rc4 {[%emt 0:01:18]} g5 {[%emt 0:01:51]} 29. a4 {[%emt 0:03:38]} Bf8 {[%emt 0:02:00]} 30. Bd2 {[%emt 0:02:47]} Red6 {[%emt 0:01:05]} 31. R4c3 {[%emt 0:00:20]} Kf7 {[%emt 0:01:47]} 32. b5 {[%emt 0:01:12]} axb5 {[%emt 0:01:49]} 33. axb5 {[%emt 0:00:00]} cxb5 {[%emt 0:00:09]} 34. Rb1 {[%emt 0:00:03]} Ra6 {[%emt 0:03:38]} 35. Rxb5 {[%emt 0:00:15]} Ra2 {[%emt 0:00:59]} 36. Rcb3 {[%emt 0:00:25]} Kg6 {[%emt 0:00:40]} 37. Rxb7 {[%emt 0:00:14]} Rxb7 {[%emt 0:00:07]} 38. Rxb7 $11 {[%emt 0:00:03][%mdl 4096] Endgame. KRB-KRB} Bc5 {[%emt 0:00:07]} 39. Rb1 {[%emt 0:01:35]} Bd4 {[%emt 0:00:43]} 40. Kd1 {[%emt 0:00:41]} Ra3 {[%emt 0:01:05]} 41. Ke2 {[%emt 0:05:14]} Ra2 {[%emt 0:00:04]} 42. Rc1 {[%emt 0:01:21]} Bb6 {[%emt 0:01:27]} 43. Kd1 {[%emt 0:00:26]} Bd4 {[%emt 0:02:36]} 44. Rc2 {[%emt 0:00:45] An even fight not without its subleties.   Weighted Error Value: White=0.02 (flawless) /Black=0.02 (flawless) .  OK:         	White=16    	Black=18     Best:        	White=3     	---} 1/2-1/2

[Event "German Bundesliga 2023-24"]
[Site "Germany"]
[Date "2024.02.25"]
[Round "11.14"]
[White "Pruijssers, Roeland"]
[Black "Georgiadis, Nico"]
[Result "1-0"]
[ECO "D38"]
[WhiteElo "2539"]
[BlackElo "2563"]
[Annotator "TA"]
[PlyCount "79"]
[EventDate "2023.10.20"]
[EventType "team-tourn"]
[EventCountry "GER"]
[SourceTitle "playchess.com"]
[Source "ChessBase"]
[SourceQuality "1"]
[TimeControl "40/6000+30:3000+30"]

{[%evp 15,79,17,32,0,0,20,0,3,45,39,52,41,47,36,52,45,63,32,36,54,57,51,88,86,96,81,71,54,95,89,116,122,135,137,139,156,139,139,234,238,239,165,173,170,508,509,685,668,648,683,601,542,586,289,281,290,284,281,339,325,304,325,315,337,312,304]} 1. d4 {[%emt 0:00:06]} Nf6 {[%emt 0:00:15]} 2. c4 {[%emt 0:00:26]} e6 {[%emt 0:00:29]} 3. Nf3 {[%emt 0:00:11]} d5 {[%emt 0:00:24]} 4. Nc3 {[%emt 0:00:19]} Bb4 {[%emt 0:00:44]} 5. Bg5 {[%emt 0:00:22]} h6 {[%emt 0:00:57]} 6. Bxf6 {[%emt 0:00:14]} Qxf6 {[%emt 0:00:06]} 7. e3 {[%emt 0:00:25]} O-O {[%emt 0:00:10]} 8. Rc1 {[%emt 0:00:37]} Nc6 {[%emt 0:00:21]} 9. Qb3 {[%emt 0:12:25]} a5 {[%emt 0:00:25][%cal Ba7a5,Ba5a4][%mdl 32]} 10. a3 {[%emt 0:03:23]} a4 {[%emt 0:00:43]} 11. Qa2 {[%emt 0:09:12] The position is equal.} Ba5 {[%emt 0:53:10]} 12. Be2 {[%emt 0:05:06]} dxc4 {[%emt 0:12:38]} 13. Qxc4 {[%emt 0:00:31][%cal Oe1g1]} e5 {[%emt 0:00:03]} 14. d5 {[%emt 0:02:05]} Ne7 {[%emt 0:01:43][%cal Bc6e7,Be7d5,Bd5b6][%mdl 32]} 15. O-O $1 {[%emt 0:00:16]} Bxc3 {[%emt 0:00:56]} 16. Rxc3 {[%emt 0:08:25][%cal Of1d1]} c6 {[%emt 0:11:34]} 17. dxc6 {[%emt 0:01:06]} bxc6 {[%emt 0:02:03]} 18. Qe4 {[%emt 0:15:13]} Re8 {[%emt 0:01:05]} 19. Rc5 {[%emt 0:07:38][%cal Oe2c4] White has more active pieces.} (19. Qxe5 Qxe5 20. Nxe5 Nd5 21. Rxc6 Rxe5 $15) (19. Nxe5 Nd5 20. f4 Nxc3 21. bxc3 Bf5 $17) 19... Nd5 {[%emt 0:00:29]} 20. Rfc1 {[%emt 0:14:14]} Bf5 {[%emt 0:04:23]} 21. Qc4 {[%emt 0:00:10][%cal Oe3e4] Hoping for e4!} Bd7 {[%emt 0:02:55] White now steadily converts the win.} 22. Rd1 {[%emt 0:10:17]} Nb6 {[%emt 0:03:55]} 23. Qc2 {[%emt 0:04:46]} e4 {[%emt 0:06:44]} 24. Nd4 {[%emt 0:00:34]} Re5 {[%emt 0:00:12]} 25. Rxe5 $1 {[%emt 0:08:07]} (25. Nxc6 $2 {too greedy.} Rxc5 26. Qxc5 Qxc6 $19) 25... Qxe5 {[%emt 0:00:05]} 26. Nxc6 {[%emt 0:00:07]} Bxc6 {[%emt 0:05:05]} (26... Qe6 $16) 27. Qxc6 $18 {[%emt 0:00:03]} Qxb2 {[%emt 0:00:22]} 28. Bf1 {[%emt 0:00:22] And now Rd6 would win.} Rc8 {[%emt 0:00:31] [#]} 29. Qb7 {[%emt 0:01:38] Black must now prevent Rd4.} ({Inferior is} 29. Qxe4 Qxa3 30. Rb1 Qd6 $11) 29... Re8 $2 {[%emt 0:01:02] [#]} (29... Qf6 {is more resistant.}) 30. Rd4 $1 {[%emt 0:01:06]} Re6 {[%emt 0:00:51]} 31. Rd8+ {[%emt 0:01:33]} (31. Rxe4 Rxe4 32. Qxe4 Qxa3 $11) 31... Kh7 {[%emt 0:00:04][%cal Bg8h7,Bh7g6,Bg6f7,Bf7f6][%mdl 32]} 32. Qxf7 {[%emt 0:01:40]} Qf6 {[%emt 0:01:04]} 33. Qg8+ {[%emt 0:00:52]} Kg6 {[%emt 0:00:04]} 34. g3 {[%emt 0:00:49]} (34. Rf8 $142 Qe7 35. h4) 34... Qf7 {[%emt 0:00:27] White has a decisive advantage.} 35. Qxf7+ {[%emt 0:00:44]} Kxf7 {[%emt 0:00:03]} 36. Rd4 {[%emt 0:00:15]} Kf6 {[%emt 0:00:41]} 37. Bg2 {[%emt 0:01:02]} Rc6 {[%emt 0:00:06]} 38. Bxe4 {[%emt 0:00:17]} Rc1+ {[%emt 0:00:13]} 39. Kg2 {[%emt 0:00:03]} Nc4 {[%emt 0:00:05]} 40. Bd3 {[%emt 0:02:32] Weighted Error Value: White=0.20 (precise) /Black=0.33.  Mistake:       	---       	Black=2      Inaccurate:     	White=2     	Black=5      OK:         	White=14    	Black=13     Best:        	White=3     	Black=3      Strong:       	White=2     	---} 1-0